bitfinex/quotes_SOLUSD_20241223
["timestamp","ask_amount","ask_price","bid_price","bid_amount"]
[1734965658201,6.2805,182.42,182.3,0.12549]
[1734965658379,6.2805,182.42,182.37,33.83612172]
[1734965658575,6.2805,182.42,182.4,33.96161172]
[1734965658882,6.2805,182.42,182.41,33.96161172]
[1734965659083,0.6753613,182.46,182.41,33.96161172]
[1734965659596,0.6753613,182.46,182.42,33.96161172]
[1734965660309,0.6753613,182.46,182.44,33.83612172]
[1734965660478,0.6753613,182.46,182.45,0.12549]
[1734965660801,0.6753613,182.46,182.38,33.83612172]
[1734965661184,0.6753613,182.46,182.29,6.3547]
[1734965661185,0.6753613,182.46,182.36,33.83612172]
[1734965661390,1.02805279,182.45,182.38,33.83612172]
[1734965661586,0.6753613,182.46,182.42,33.83612172]
[1734965661823,0.6753613,182.46,182.45,0.12549]
[1734965662905,6.5419,182.57,182.46,0.12549]
[1734965663214,1.02711929,182.6,182.55,0.12549]
[1734965663398,1.02695254,182.62,182.55,0.12549]
[1734965663596,1.02695254,182.62,182.5,33.83612172]
[1734965663804,1.02695254,182.62,182.53,33.83612172]
[1734965664107,0.6753613,182.64,182.58,33.96161172]
[1734965664309,0.6753613,182.64,182.59,0.12549]
[1734965664806,0.6753613,182.64,182.45,20.0]
[1734965664807,1.02666006,182.63,182.45,20.0]
[1734965664983,1.02666006,182.63,182.5,33.83612172]
[1734965665184,1.02666006,182.63,182.51,0.12549]
[1734965665397,3.76436006,182.63,182.47,33.83612172]
[1734965665600,3.76436006,182.63,182.53,33.83612172]
[1734965666304,1.02666006,182.63,182.54,0.12549]
[1734965666501,20.0,182.62,182.56,0.12549]
[1734965666706,1.70237985,182.64,182.56,0.12549]
[1734965666891,0.6753613,182.64,182.58,0.12549]
[1734965667413,0.6753613,182.64,182.6,0.12549]
[1734965668007,0.6753613,182.64,182.58,0.12549]
[1734965668183,0.6753613,182.64,182.6,0.12549]
[1734965668394,0.6753613,182.64,182.63,33.96161172]
[1734965669924,12.94646202,182.8,182.64,0.12549]
[1734965670092,12.94646202,182.8,182.71,33.83612172]
[1734965670290,1.02616202,182.8,182.72,0.12549]
[1734965670491,1.02616202,182.8,182.74,0.12549]
[1734965671006,1.70119192,182.82,182.74,0.12549]
[1734965671213,1.70119192,182.82,182.81,33.96161172]
[1734965671421,1.02561656,182.99,182.85,0.12549]
[1734965671621,1.02561656,182.99,182.92,33.83612172]
[1734965671914,0.6753613,183.0,182.96,33.83612172]
[1734965672116,0.6753613,183.0,182.98,33.83612172]
[1734965672310,0.6753613,183.0,182.99,0.12549]
[1734965672819,0.6753613,183.0,182.98,7.31986279]
[1734965673023,1.02460099,183.09,182.96,33.83612172]
[1734965673024,2.731,183.08,182.96,33.83612172]
[1734965673192,0.3290255,183.0,182.96,33.83612172]
[1734965673394,0.3290255,183.0,182.98,33.83612172]
[1734965674717,0.3290255,183.0,182.94,33.83612172]
[1734965676614,0.3290255,183.0,182.96,33.83612172]
[1734965677232,0.3290255,183.0,182.99,0.12549]
[1734965677820,0.3290255,183.0,182.99,33.83612172]
[1734965678016,0.3290255,183.0,182.99,33.96161172]
[1734965678302,1.0242815,183.11,183.0,0.12549]
[1734965678529,2.7302,183.14,183.05,33.83612172]
[1734965678832,1.02410204,183.13,183.05,33.83612172]
[1734965679006,1.02410204,183.13,183.04,33.83612172]
[1734965679201,1.02410204,183.13,183.03,33.83612172]
[1734965679511,21.02410204,183.13,183.03,33.83612172]
[1734965679704,1.02438644,183.09,183.0,33.83612172]
[1734965680223,1.02438644,183.09,182.99,33.83612172]
[1734965680417,1.02438644,183.09,182.9,1.6491]
[1734965680733,0.12549,183.08,182.95,33.83612172]
[1734965680936,1.02475578,183.07,182.95,33.83612172]
[1734965681107,1.02475578,183.07,182.96,33.83612172]
[1734965681311,1.02475578,183.07,182.95,33.83612172]
[1734965681643,6.29449,183.05,182.86,0.48692332]
[1734965681933,20.0,183.02,182.87,33.83612172]
[1734965682241,21.02504072,183.01,182.87,33.83612172]
[1734965682530,0.12549,183.0,182.83,33.83612172]
[1734965682736,22.7326,182.97,182.83,33.83612172]
[1734965682935,1.0252197,182.96,182.87,33.83612172]
[1734965683306,2.7321,183.01,182.92,33.83612172]
[1734965683509,1.02477065,183.0,182.9,33.96161172]
[1734965683704,1.02477065,183.0,182.9,0.12549]
[1734965683924,1.02477065,183.0,182.9,33.83612172]
[1734965684109,1.02477065,183.0,182.92,33.83612172]
[1734965684628,1.02477275,183.04,182.94,33.83612172]
[1734965684943,1.02477275,183.04,182.95,0.12549]
[1734965685237,20.0,183.02,182.95,0.12549]
[1734965685541,20.0,183.02,182.88,33.83612172]
[1734965685542,1.02460576,183.01,182.92,33.83612172]
[1734965685912,1.02460576,183.01,182.9,33.83612172]
[1734965686206,1.02460576,183.01,182.88,33.83612172]
[1734965686518,2.7322,183.0,182.88,33.83612172]
[1734965686725,1.0249942,182.99,182.87,33.83612172]
[1734965687231,1.0249942,182.99,182.92,33.83612172]
[1734965687419,20.0,183.02,182.94,33.83612172]
[1734965687615,1.02461604,183.01,182.92,33.83612172]
[1734965687815,1.02461604,183.01,182.93,0.12549]
[1734965688023,1.02474167,183.03,182.94,33.83612172]
[1734965688418,1.02474167,183.03,182.93,0.12549]
[1734965688621,1.02474167,183.03,182.95,0.12549]
[1734965689027,1.02459673,183.04,182.96,33.83612172]
[1734965689220,20.0,183.02,182.94,33.83612172]
[1734965689741,20.0,183.02,182.96,33.83612172]
[1734965690139,1.02463094,183.01,182.92,33.83612172]
[1734965690437,21.02463094,183.01,182.88,33.83612172]
[1734965690617,21.02463094,183.01,182.81,7.8249]
[1734965690618,0.12549,182.99,182.81,7.8249]
[1734965690817,1.1506987,182.99,182.86,33.83612172]
[1734965691006,1.0252087,182.99,182.86,33.83612172]
[1734965691615,1.0252087,182.99,182.89,0.12549]
[1734965691808,16.55,183.15,182.88,33.83612172]
[1734965691809,1.02496641,183.02,182.96,0.12549]
[1734965692010,1.02458761,183.04,182.96,0.12549]
[1734965692215,1.02458761,183.04,182.93,33.83612172]
[1734965692438,2.7317,183.03,182.93,33.83612172]
[1734965692622,0.12549,183.01,182.89,33.83612172]
[1734965692829,1.02505195,183.0,182.87,33.83612172]
[1734965693333,1.02505195,183.0,182.88,0.12549]
[1734965693742,2.7323,182.99,182.87,33.83612172]
[1734965694050,0.12549,182.97,182.83,33.83612172]
[1734965694222,21.02536831,182.96,182.83,33.83612172]
[1734965694635,21.02536831,182.96,182.88,33.83612172]
[1734965694929,21.02536831,182.96,182.86,33.83612172]
[1734965695342,21.02536831,182.96,182.85,0.12549]
[1734965695648,2.7329,182.95,182.84,33.83612172]
[1734965695874,1.02528117,182.94,182.82,33.83612172]
[1734965696329,1.02528117,182.94,182.8,33.83612172]
[1734965696534,26.0835,182.92,182.78,33.83612172]
[1734965696849,26.0835,182.92,182.76,33.83612172]
[1734965696850,1.02558068,182.91,182.76,33.83612172]
[1734965697842,1.02558068,182.91,182.83,0.12549]
[1734965699722,1.02558068,182.91,182.81,0.12549]
[1734965700547,1.02558068,182.91,182.78,33.83612172]
[1734965700746,1.02558068,182.91,182.8,33.83612172]
[1734965701335,2.7337,182.9,182.78,33.83612172]
[1734965701650,21.02559168,182.89,182.74,33.83612172]
[1734965701823,21.02559168,182.89,182.72,33.83612172]
[1734965702022,1.5879,182.87,182.72,33.83612172]
[1734965702221,1.02591656,182.86,182.75,0.12549]
[1734965702518,1.02591656,182.86,182.72,33.83612172]
[1734965702519,20.0,182.84,182.72,33.83612172]
[1734965702752,1.02592667,182.83,182.7,33.83612172]
[1734965703260,20.0,182.79,182.58,6.74074697]
[1734965703422,1.02634338,182.78,182.59,33.83612172]
[1734965703622,0.12549,182.77,182.62,33.83612172]
[1734965703934,1.02648384,182.76,182.64,33.83612172]
[1734965704134,1.02648384,182.76,182.67,0.12549]
[1734965704342,20.0,182.79,182.61,33.83612172]
[1734965704343,1.0263826,182.78,182.68,33.83612172]
[1734965705027,3.7618826,182.78,182.66,33.83612172]
[1734965705228,23.7618826,182.78,182.64,33.83612172]
[1734965705554,23.7618826,182.78,182.62,33.83612172]
[1734965705555,0.12549,182.77,182.62,33.83612172]
[1734965705859,20.12549,182.75,182.6,33.83612172]
[1734965706045,1.02655205,182.74,182.6,33.83612172]
[1734965706834,2.7362,182.73,182.61,0.12549]
[1734965707137,1.02651687,182.72,182.63,0.12549]
[1734965707638,1.02651687,182.72,182.61,0.12549]
[1734965707861,1.02651687,182.72,182.66,33.83612172]
[1734965708064,1.02634938,182.76,182.67,0.12549]
[1734965708345,1.02634938,182.76,182.69,0.12549]
[1734965708652,1.02609871,182.79,182.69,0.12549]
[1734965709551,21.02609871,182.79,182.69,0.12549]
[1734965709954,1.02609871,182.79,182.71,0.12549]
[1734965710436,1.02598216,182.78,182.71,0.12549]
[1734965710633,3.76101714,182.81,182.68,33.83612172]
[1734965711254,3.76101714,182.81,182.71,0.12549]
[1734965712256,3.76101714,182.81,182.7,33.83612172]
[1734965712460,3.76101714,182.81,182.68,33.83612172]
[1734965713253,20.0,182.79,182.69,0.12549]
[1734965713444,1.02607206,182.78,182.69,0.12549]
[1734965713644,1.02607206,182.78,182.66,33.83612172]
[1734965714169,3.76157206,182.78,182.67,0.12549]
[1734965714539,2.735,182.81,182.71,0.12549]
[1734965714750,1.02583084,182.85,182.73,0.12549]
[1734965715003,1.02573825,182.81,182.73,0.12549]
[1734965715185,1.02573825,182.81,182.67,33.83612172]
[1734965715372,1.02573825,182.81,182.64,33.83612172]
[1734965715698,0.12549,182.8,182.57,33.83612172]
[1734965715854,0.12549,182.75,182.55,33.83612172]
[1734965716175,20.0,182.7,182.53,33.83612172]
[1734965716488,1.02685457,182.69,182.51,35.47092172]
[1734965716785,1.02685457,182.69,182.49,33.83612172]
[1734965717081,1.02685457,182.69,182.55,33.83612172]
[1734965717589,1.02685457,182.69,182.58,0.12549]
[1734965719665,6.5175,182.73,182.62,0.12549]
[1734965719866,1.0262879,182.72,182.62,0.12549]
[1734965720071,3.7626879,182.72,182.62,0.12549]
[1734965720286,3.7626879,182.72,182.57,33.83612172]
[1734965720483,3.7626879,182.72,182.6,0.12549]
[1734965721176,20.0,182.7,182.6,0.61575468]
[1734965721380,1.0262879,182.72,182.62,0.12549]
[1734965721575,6.443,182.79,182.66,0.12549]
[1734965721757,1.02605222,182.78,182.68,0.12549]
[1734965722267,1.02605222,182.78,182.66,0.12549]
[1734965722784,20.0,182.76,182.66,0.12549]
[1734965723388,6.443,182.79,182.68,0.12549]
[1734965723994,1.02588802,182.78,182.65,53.83612172]
[1734965724291,1.02588802,182.78,182.61,119.1]
[1734965724292,3.76138802,182.78,182.61,53.83612172]
[1734965724460,3.76138802,182.78,182.61,33.83612172]
[1734965724787,20.0,182.76,182.62,0.12549]
[1734965724983,1.02632308,182.75,182.62,0.12549]
[1734965725369,21.02632308,182.75,182.62,0.12549]
[1734965725571,20.0,182.72,182.62,0.12549]
[1734965725773,1.02636926,182.71,182.62,0.12549]
[1734965725999,1.02636926,182.71,182.59,34.32635768]
[1734965726182,1.02636926,182.71,182.58,1.5711]
[1734965726487,1.02636926,182.71,182.55,33.83612172]
[1734965726698,20.0,182.67,182.53,33.83612172]
[1734965726867,1.02667198,182.66,182.56,0.12549]
[1734965727066,6.4912,182.7,182.6,0.12549]
[1734965727271,20.0,182.72,182.62,0.12549]
[1734965727960,1.02631774,182.71,182.62,0.12549]
[1734965728261,20.0,182.72,182.62,0.12549]
[1734965728663,1.02630972,182.71,182.62,0.12549]
[1734965728892,20.0,182.72,182.62,0.12549]
[1734965729094,20.0,182.72,182.63,33.83612172]
[1734965729388,6.3648,182.75,182.66,0.12549]
[1734965729995,29.27273479,182.8,182.66,0.12549]
[1734965730165,7.36615979,182.8,182.68,0.12549]
[1734965730363,6.34,182.8,182.68,0.12549]
[1734965730579,6.34,182.8,182.72,0.12549]
[1734965730776,6.34,182.86,182.72,0.12549]
[1734965730993,22.92524978,182.85,182.72,0.12549]
[1734965731493,1.02564978,182.85,182.72,0.12549]
[1734965731794,28.238934,182.86,182.77,0.12549]
[1734965731964,21.898934,182.86,182.79,0.12549]
[1734965732294,1.02534026,182.92,182.81,0.12549]
[1734965732475,1.02534026,182.92,182.79,33.96161172]
[1734965732476,1.02534026,182.92,182.8,0.12549]
[1734965732662,1.02534026,182.92,182.83,0.12549]
[1734965732860,21.891557,182.92,182.83,0.12549]
[1734965733067,21.891557,182.92,182.85,0.12549]
[1734965733300,6.5079,182.99,182.85,0.12549]
[1734965733629,6.5079,182.99,182.79,33.83612172]
[1734965733630,0.12549,182.97,182.79,33.83612172]
[1734965733788,0.12549,182.95,182.78,20.0]
[1734965733992,1.02547892,182.94,182.76,20.0]
[1734965734300,20.0,182.91,182.72,33.83612172]
[1734965734466,20.0,182.86,182.72,34.32502731]
[1734965734674,1.02561298,182.85,182.72,34.32502731]
[1734965734998,20.0,182.86,182.75,0.12549]
[1734965735174,21.02540964,182.86,182.75,0.61380672]
[1734965735361,20.0,182.86,182.75,0.61380672]
[1734965735566,1.02549845,182.85,182.72,0.12549]
[1734965735799,21.02549845,182.85,182.71,33.83612172]
[1734965735987,21.02549845,182.85,182.69,33.83612172]
[1734965737296,21.02549845,182.85,182.71,33.83612172]
[1734965737497,21.02549845,182.85,182.69,33.83612172]
[1734965737865,0.12549,182.84,182.67,33.83612172]
[1734965738178,2.86099,182.78,182.59,33.83612172]
[1734965738371,1.02635921,182.77,182.59,33.42820798]
[1734965738585,1.02635921,182.77,182.59,33.83612172]
[1734965738904,1.02635921,182.77,182.6,0.12549]
[1734965739200,1.02635921,182.77,182.63,0.12549]
[1734965739609,2.7358,182.76,182.63,0.12549]
[1734965739769,1.02634342,182.75,182.63,0.12549]
[1734965739971,1.02634342,182.75,182.59,33.83612172]
[1734965740274,1.02634342,182.75,182.6,0.49010216]
[1734965740804,1.02634342,182.75,182.59,33.83612172]
[1734965741308,1.02634342,182.75,182.59,47.52792172]
[1734965741488,1.02613465,182.76,182.64,33.83612172]
[1734965741676,1.02609975,182.78,182.67,0.12549]
[1734965741997,1.02594777,182.8,182.67,0.61488298]
[1734965742206,1.02594777,182.8,182.7,0.12549]
[1734965742679,1.02594777,182.8,182.67,20.0]
[1734965742885,20.0,182.79,182.65,20.0]
[1734965743097,1.02624176,182.78,182.66,0.12549]
[1734965743603,21.02624176,182.78,182.68,0.12549]
[1734965747196,21.02624176,182.78,182.66,0.12549]
[1734965747580,21.02624176,182.78,182.68,0.12549]
[1734965747907,4.323,182.81,182.68,0.12549]
[1734965747908,23.76156702,182.77,182.68,0.12549]
[1734965748082,23.76156702,182.77,182.65,20.0]
[1734965748446,23.76156702,182.77,182.62,20.0]
[1734965748578,23.76156702,182.77,182.6,33.83612172]
[1734965749675,23.76156702,182.77,182.61,20.0]
[1734965749881,23.76156702,182.77,182.62,0.12549]
[1734965750807,21.02596702,182.77,182.66,0.12549]
[1734965750978,1.02609945,182.79,182.66,0.12549]
[1734965751378,3.76159945,182.79,182.65,0.12549]
[1734965751809,3.76159945,182.79,182.65,0.61501705]
[1734965752519,3.76159945,182.79,182.67,0.12549]
[1734965752728,3.76159945,182.79,182.69,0.12549]
[1734965753090,3.76159945,182.79,182.68,0.12549]
[1734965753293,3.76159945,182.79,182.59,13.6918]
[1734965753508,3.76159945,182.79,182.6,33.83612172]
[1734965753793,20.0,182.77,182.62,33.96161172]
[1734965753992,20.0,182.78,182.67,0.12549]
[1734965754192,20.0,182.79,182.69,0.12549]
[1734965754495,20.0,182.79,182.69,0.61460896]
[1734965754805,1.0258051,182.78,182.66,33.83612172]
[1734965755003,20.0,182.79,182.66,34.32556829]
[1734965755207,1.02590329,182.78,182.67,0.12549]
[1734965755618,1.02590329,182.78,182.66,34.32556829]
[1734965755947,1.02590329,182.78,182.67,0.12549]
[1734965756128,1.02590329,182.78,182.62,33.83612172]
[1734965756421,1.02590329,182.78,182.63,0.4898014]
[1734965756918,2.7356,182.77,182.63,0.4898014]
[1734965757109,2.7356,182.77,182.64,33.83612172]
[1734965757306,1.02597153,182.76,182.66,0.12549]
[1734965758097,20.0,182.78,182.68,0.12549]
[1734965758807,20.0,182.78,182.7,0.12549]
[1734965759331,5.34886419,182.81,182.7,33.96161172]
[1734965759512,5.34878837,182.81,182.7,33.96161172]
[1734965759915,4.323,182.81,182.7,33.96161172]
[1734965760228,6.2133,182.82,182.73,0.12549]
[1734965760603,8.9483,182.82,182.73,0.61433867]
[1734965760820,1.02567562,182.81,182.73,0.12549]
[1734965761009,8.9483,182.82,182.73,0.12549]
[1734965761413,1.02571576,182.81,182.73,0.12549]
[1734965761617,1.02571576,182.81,182.68,21.21799344]
[1734965761808,1.02571576,182.81,182.64,20.72906449]
[1734965762006,0.12549,182.8,182.59,13.6911]
[1734965762210,1.5879,182.78,182.6,20.72906449]
[1734965762519,21.02640186,182.77,182.6,20.72906449]
[1734965762712,21.02640186,182.77,182.57,2.08110115]
[1734965762713,21.02640186,182.77,182.62,20.72906449]
[1734965763027,21.02640186,182.77,182.65,0.12549]
[1734965763538,1.5879,182.78,182.7,0.12549]
[1734965763707,8.2282358,182.8,182.74,0.12549]
[1734965764042,8.2282358,182.8,182.79,40.85455449]
[1734965764204,16.45647161,182.82,182.81,33.76919749]
[1734965764700,16.45647161,182.92,182.87,0.12549]
[1734965764906,16.45647161,182.92,182.86,20.0]
[1734965764907,16.45647161,182.92,182.91,33.76919749]
[1734965765613,0.0488172,182.93,182.91,33.64370749]
[1734965765823,0.0488172,182.93,182.91,34.13052927]
[1734965766342,0.0488172,182.93,182.92,0.12549]
[1734965766803,0.0488172,182.93,182.89,34.13057242]
[1734965767003,0.0488172,182.93,182.9,0.12549]
[1734965767618,0.0488172,182.93,182.92,0.12549]
[1734965768730,1.0244999,183.08,182.92,0.12549]
[1734965768930,6.1865,183.09,183.01,0.12549]
[1734965769134,0.6841302,183.11,183.05,0.12549]
[1734965769314,0.6841302,183.11,183.07,0.12549]
[1734965770344,0.6841302,183.11,183.09,0.12549]
[1734965770542,0.6841302,183.11,183.1,33.76919749]
[1734965771547,1.02344655,183.25,183.11,0.12549]
[1734965771838,6.5439,183.28,183.11,0.12549]
[1734965771839,1.02357386,183.24,183.11,0.12549]
[1734965772066,1.02357386,183.24,183.08,33.64370749]
[1734965772344,1.02357386,183.24,183.11,0.12549]
[1734965772710,2.7288,183.23,183.11,0.12549]
[1734965772913,1.0236841,183.22,183.08,33.64370749]
[1734965773138,1.0236841,183.22,183.06,33.64370749]
[1734965773343,20.0,183.19,183.04,33.64370749]
[1734965773511,1.02391027,183.18,183.02,33.64370749]
[1734965773710,1.02391027,183.18,183.04,33.64370749]
[1734965773910,1.02391027,183.18,183.06,33.64370749]
[1734965774213,1.02391027,183.18,183.07,0.61050476]
[1734965774431,1.02391027,183.18,183.07,0.12549]
[1734965775144,1.02391027,183.18,183.09,0.12549]
[1734965775349,1.02391027,183.18,183.06,33.64370749]
[1734965775514,1.02391027,183.18,183.04,33.64370749]
[1734965775515,2.7297,183.17,183.04,33.64370749]
[1734965775712,1.02394758,183.16,183.02,53.64370749]
[1734965776013,1.02394758,183.16,183.02,33.64370749]
[1734965776212,1.02394758,183.16,183.07,0.12549]
[1734965776431,1.02376891,183.21,183.11,0.12549]
[1734965776735,0.6841302,183.29,183.13,0.12549]
[1734965776736,1.02355986,183.24,183.13,0.12549]
[1734965777441,2.7288,183.23,183.1,33.64370749]
[1734965777650,1.02368757,183.22,183.1,33.64370749]
[1734965778145,1.02368757,183.22,183.11,0.12549]
[1734965778312,1.02346849,183.24,183.13,0.12549]
[1734965778650,1.02338239,183.26,183.15,0.12549]
[1734965779021,1.02338239,183.26,183.15,0.60958991]
[1734965779350,2.45552289,183.26,183.15,0.60958991]
[1734965780046,1.02338239,183.26,183.15,0.60958991]
[1734965780241,1.02338239,183.26,183.12,33.64370749]
[1734965780473,3.75205973,183.25,183.14,33.64370749]
[1734965780751,3.75205973,183.25,183.15,0.12549]
[1734965780934,1.02336274,183.24,183.15,0.12549]
[1734965781237,2.7283,183.26,183.11,33.64370749]
[1734965781445,1.02367425,183.25,183.11,33.64370749]
[1734965781751,1.02367425,183.25,183.12,0.61023375]
[1734965781919,1.02367425,183.25,183.14,0.12549]
[1734965782352,21.02367425,183.25,183.14,0.60987887]
[1734965782545,21.02367425,183.25,183.16,0.12549]
[1734965782845,1.70743678,183.29,183.16,0.60943315]
[1734965783154,7.5671329,183.28,183.18,0.12549]
[1734965783943,1.70729751,183.29,183.21,0.12549]
[1734965784113,1.70729751,183.29,183.21,33.76919749]
[1734965784309,0.6841302,183.29,183.21,33.76919749]
[1734965784535,0.6841302,183.29,183.2,33.76919749]
[1734965784943,0.6841302,183.29,183.2,0.12549]
[1734965785123,1.02304308,183.28,183.15,33.64370749]
[1734965785323,1.02304308,183.28,183.16,33.64370749]
[1734965785745,1.02304308,183.28,183.17,0.12549]
[1734965786245,1.02304308,183.28,183.1,15.2326]
[1734965786246,23.75104308,183.28,183.13,53.64370749]
[1734965786444,23.75104308,183.28,183.12,33.64370749]
[1734965786752,23.75104308,183.28,183.06,33.64370749]
[1734965786753,20.0,183.24,183.08,33.64370749]
[1734965786912,20.0,183.19,183.08,33.64370749]
[1734965787430,1.02375105,183.18,183.08,33.64370749]
[1734965787626,1.02373181,183.18,183.09,0.12549]
[1734965787839,1.02373181,183.18,183.04,8.16397124]
[1734965787840,1.02370973,183.18,183.08,33.64370749]
[1734965788238,2.7297,183.17,183.05,33.64370749]
[1734965788542,1.0239418,183.16,183.04,33.64370749]
[1734965788753,1.0239418,183.16,183.02,33.64370749]
[1734965788934,1.0239418,183.16,183.03,33.64370749]
[1734965789125,1.0239418,183.16,183.02,33.64370749]
[1734965789323,1.0239418,183.16,183.01,33.64370749]
[1734965789526,1.0239418,183.16,183.0,33.64370749]
[1734965789766,8.19,183.15,183.01,0.12549]
[1734965789965,20.0,183.12,182.98,33.64370749]
[1734965790155,20.0,183.06,182.93,33.64370749]
[1734965790481,1.02467371,183.05,182.91,35.25060749]
[1734965790780,1.02467371,183.05,182.95,33.64370749]
[1734965790952,20.0,183.12,182.99,33.64370749]
[1734965791158,1.0242559,183.1,182.99,33.64370749]
[1734965791671,1.0242559,183.1,182.99,0.12549]
[1734965791874,1.0242559,183.1,183.0,0.12549]
[1734965792079,1.02421681,183.11,183.0,0.12549]
[1734965792671,1.5139,183.14,183.01,33.64370749]
[1734965792880,2.05218576,183.14,183.03,0.12549]
[1734965793247,0.53828576,183.14,183.05,0.12549]
[1734965794374,6.5313,183.15,183.05,0.12549]
[1734965794579,0.53828576,183.16,183.07,0.12549]
[1734965794784,2.7298,183.17,183.07,0.12549]
[1734965794785,3.26748576,183.2,183.09,0.12549]
[1734965795282,3.26748576,183.2,183.11,0.12549]
[1734965796059,2.7292,183.2,183.11,0.12549]
[1734965796249,2.7287,183.24,183.13,0.12549]
[1734965796470,3.26698576,183.24,183.15,0.12549]
[1734965796671,0.53828576,183.26,183.15,0.12549]
[1734965796848,21.27879808,183.33,183.2,33.64370749]
[1734965797048,0.53828576,183.32,183.23,0.12549]
[1734965797272,7.717494,183.33,183.25,0.12549]
[1734965797479,1.5879,183.35,183.25,0.12549]
[1734965797958,2.7269,183.36,183.25,0.12549]
[1734965798258,0.53828576,183.35,183.25,0.12549]
[1734965798478,0.53828576,183.35,183.23,0.12549]
[1734965799052,0.53828576,183.35,183.25,0.12549]
[1734965799381,7.35643823,183.39,183.25,0.12549]
[1734965799382,2.7257,183.44,183.32,33.76919749]
[1734965799548,0.53828576,183.43,183.32,33.76919749]
[1734965800383,3.4092302,183.48,183.37,0.12549]
[1734965801267,0.53828576,183.47,183.34,33.64370749]
[1734965801579,0.53828576,183.47,183.37,0.12549]
[1734965801973,0.53828576,183.47,183.35,0.12549]
[1734965802172,0.53828576,183.47,183.37,0.12549]
[1734965802362,3.4092302,183.48,183.39,0.12549]
[1734965802759,0.6841302,183.48,183.38,0.12549]
[1734965802960,0.6841302,183.48,183.39,0.81753913]
[1734965803380,0.6841302,183.48,183.4,0.12549]
[1734965803582,0.6841302,183.48,183.4,33.76919749]
[1734965803956,0.6841302,183.48,183.39,0.81753913]
[1734965804183,0.6841302,183.48,183.4,33.64370749]
[1734965804483,0.6841302,183.48,183.41,0.12549]
[1734965804650,0.6841302,183.48,183.41,0.94293811]
[1734965805276,0.6841302,183.48,183.43,0.12549]
[1734965805457,2.7245,183.52,183.43,0.12549]
[1734965805658,3.26128576,183.62,183.45,0.12549]
[1734965805858,3.26128576,183.62,183.47,0.12549]
[1734965806264,3.26128576,183.62,183.44,33.64370749]
[1734965806454,8.09360617,183.62,183.44,33.64370749]
[1734965806677,8.09360617,183.62,183.47,0.12549]
[1734965807521,3.26128576,183.62,183.5,0.12549]
[1734965807670,3.26128576,183.62,183.5,33.76919749]
[1734965807872,3.26128576,183.62,183.52,0.12549]
[1734965807873,2.723,183.62,183.52,0.12549]
[1734965808188,1.22241596,183.66,183.57,0.12549]
[1734965808363,0.6841302,183.66,183.61,0.12549]
[1734965808557,0.6841302,183.66,183.6,33.64370749]
[1734965808558,0.6841302,183.66,183.63,0.12549]
[1734965808864,2.1162707,183.66,183.65,20.12549]
[1734965809078,0.6841302,183.66,183.65,20.12549]
[1734965809266,0.6841302,183.66,183.65,53.76919749]
[1734965809701,0.6841302,183.66,183.65,33.64370749]
[1734965809870,0.6841302,183.66,183.65,0.12549]
[1734965810385,0.6841302,183.66,183.61,33.64370749]
[1734965810571,0.6841302,183.66,183.63,33.64370749]
[1734965810776,0.6841302,183.66,183.65,33.64370749]
[1734965811168,0.6841302,183.66,183.65,33.76919749]
[1734965812190,0.53828576,183.78,183.68,53.64370749]
[1734965812379,10.0,183.79,183.72,33.64370749]
[1734965812582,2.7199,183.83,183.73,0.12549]
[1734965812787,0.53828576,183.82,183.73,0.12549]
[1734965812985,2.7199,183.83,183.73,0.12549]
[1734965813182,0.53828576,183.82,183.7,33.64370749]
[1734965813685,0.53828576,183.82,183.73,33.76919749]
[1734965813995,8.64967782,183.96,183.69,0.81625457]
[1734965813996,2.7193,183.87,183.76,0.12549]
[1734965814175,0.53828576,183.86,183.76,0.12549]
[1734965814370,0.53828576,183.84,183.74,33.64370749]
[1734965814798,0.53828576,183.84,183.75,0.12549]
[1734965814993,22.7193,183.87,183.77,0.12549]
[1734965815206,20.0,183.87,183.77,0.94140056]
[1734965815370,2.7188,183.91,183.79,0.12549]
[1734965815676,0.53828576,183.9,183.79,0.12549]
[1734965815879,0.53828576,183.9,183.76,33.64370749]
[1734965816081,0.53828576,183.9,183.79,0.12549]
[1734965816306,2.7192,183.88,183.79,0.12549]
[1734965816606,0.53828576,183.84,183.72,33.64370749]
[1734965817170,0.53828576,183.84,183.75,0.12549]
[1734965817477,0.53828576,183.84,183.72,33.64370749]
[1734965817685,20.0,183.82,183.73,0.12549]
[1734965817996,20.0,183.82,183.72,33.64370749]
[1734965818166,2.7199,183.83,183.73,0.12549]